Cogmind - Beta 16.1 @@@ ROGUE MODE // 2026.02.17 @ 21:05:21 Player: Florist Result: Destroyed by as-01513 with Assembled Rifle Performance ------------- Evolutions (0) 0 Regions Visited (2) 400 Robots Destroyed (20) 100 Value Destroyed (471) 471 Prototype IDs (2) 40 Alien Tech Used (0) 0 Bonus (0) 0 TOTAL SCORE: 1011 Bonus ------- None Cogmind --------- Core Integrity 0/250 Matter 53/300 Energy 80/100 System Corruption 10% Temperature Cool (0) Movement Treading (240) Ox1 Location -10/Mines Parts ------- > --- POWER (1) -------- (None) > --- PROPULSION (2) --- Light Treads > --- UTILITY (2) ------ Large Storage Unit Signal Interpreter > --- WEAPON (2) ------- Assault Rifle Assault Rifle > --- INVENTORY (15) --- Ion Engine Improved Heat Sink Improved Heat Sink Small Storage Unit Medium Storage Unit Assault Rifle Mining Laser Peak State ------------ > --- POWER ------------ Light Nuclear Core > --- PROPULSION ------- Light Treads > --- UTILITY ---------- Improved Heat Sink Large Storage Unit > --- WEAPON ----------- Medium Laser Particle Gun > --- INVENTORY -------- Ion Engine Light Ion Engine Light Treads Light Treads Improved Heat Sink Small Storage Unit Medium Storage Unit Assault Rifle [Rating: 12] Favorites ----------- Power Light Nuclear Core Engine Light Ion Engine Power Core Light Nuclear Core Propulsion Light Treads Treads Light Treads Utility Large Storage Unit Device Seismic Detector Storage Large Storage Unit Processor Signal Interpreter Weapon Assault Rifle Energy Gun Medium Laser Ballistic Gun Assault Rifle Build | -11 -10 -10 ------- Run | Yrd Mat Min Slots Evolved . | . . . Power . | . . . Propulsion . | . . . Utility . | . . . Weapon . | . . . Parts Attached 20 | 7 9 4 Power 2 | 1 1 . Engine 1 | 1 . . Core 1 | . 1 . Reactor . | . . . Propulsion 4 | 2 1 1 Treads 4 | 2 1 1 Leg . | . . . Wheel . | . . . Hover . | . . . Flight . | . . . Utility 6 | 2 4 . Device 2 | 1 1 . Storage 3 | 1 2 . Processor 1 | . 1 . Hackware . | . . . Protection . | . . . Artifact . | . . . Weapon 8 | 2 3 3 Energy Gun 2 | . 2 . Energy Cannon . | . . . Ballistic Gun 6 | 2 1 3 Ballistic Cannon . | . . . Launcher . | . . . Special Weapon . | . . . Impact Weapon . | . . . Slashing Weapon . | . . . Piercing Weapon . | . . . Special Melee Weapon . | . . . Unidentified Prototypes . | . . . Parts Lost 9 | . 4 5 Power 2 | . 1 1 Propulsion 3 | . 1 2 Utility 1 | . 1 . Weapon 3 | . 1 2 Highest Loss Streak 5 | . 3 5 To Critical Strikes . | . . . Average Backups 7 | 1 7 9 Power 1 | . 1 1 Propulsion 1 | . 1 . Utility 2 | . 2 4 Weapon 1 | . 1 3 Tool/Special . | . . . Unused Backups 2 | . . 2 Power 1 | . . 1 Propulsion . | . . . Utility 1 | . . 1 Weapon . | . . . Tool/Special . | . . . Average Slot Usage (%) 91 | . 91 94 Engine 3 | . 2 11 Core 6 | . 7 . Treads 24 | . 23 26 Device 9 | . 10 . Storage 14 | . 14 14 Processor 4 | . 3 14 Energy Gun 8 | . 9 . Ballistic Gun 19 | . 18 26 Peak Build Rating 12 | 7 12 11 Average Rating 8 | 5 8 8 On Entrance 5 | . 7 8 Avg Prop Armor Cover (%) . | . . . Naked Turns . | . . . Heaviest Build 31 | 13 31 27 Greatest Support 40 | 40 40 40 Greatest Overweight (x) 1 | . 1 . Average Overweight (x) . | . . . Largest Inventory Capacity 15 | 8 15 15 Average Capacity 12 | 7 12 15 Most Carried 10 | 4 10 10 Average Carried 7 | 1 7 9 Final Capacity 15 | 8 15 15 Final Carried 9 | 2 9 7 Class Distribution -------------------- 100% | Mutant Dominant Class ---------------- Mutant | -10/Materials Mutant | -10/Mines Resources | -11 -10 -10 ----------- Run | Yrd Mat Min Matter Collected 647 | 295 314 38 Remotely . | . . . Salvage Created 761 | 145 562 54 Parts 43 | 14 29 . Haulers Intercepted 1 | . 1 . Recyclers Shooed 2 | . 2 . Parts Field Recycled . | . . . Retrieved Matter . | . . . Parts Self-Destructed . | . . . Prevented . | . . . Parts Restored . | . . . Kills | -11 -10 -10 ------- Run | Yrd Mat Min Combat Hostiles Destroyed 16 | . 10 6 Guns 16 | . 10 6 Classes Destroyed 8 | 3 4 1 Worker 2 | 1 1 . Tunneler 3 | 3 . . Hauler 1 | . 1 . Recycler 1 | 1 . . Operator 1 | . 1 . Watcher 2 | . 2 . Grunt 10 | . 10 . Assembled 6 | . . 6 Best Kill Streak 6 | 3 4 6 Combat Bots Only 6 | . 4 6 Max Kills in Single Turn 1 | 1 1 1 Gunslinging . | . . . Exploded . | . . . Melee . | . . . Uniques/NPCs Destroyed . | . . . Combat | -11 -10 -10 -------- Run | Yrd Mat Min Hostile Shots Fired 118 | . 67 51 Missed 31 | . 18 13 Hits 87 | . 49 38 Melee 12 | . . 12 Projectile 75 | . 49 26 Critical Strikes 1 | . 1 . Part Disruptions 3 | . . 3 Damage Taken 1348 | . 684 664 Core 261 | . 104 157 Absorbed by Shields . | . . . Core Remaining (%) 100 | 100 . . Volleys Fired 113 | 13 80 20 Largest 2 | 2 2 2 Hottest 115 | 40 115 44 Shots Fired 215 | 26 158 31 Gun 215 | 26 158 31 Cannon . | . . . Launcher . | . . . Special . | . . . Kinetic 156 | 26 99 31 Thermal 59 | . 59 . Explosive . | . . . Electromagnetic . | . . . Robot Hit Streak 12 | 8 12 4 Robot Miss Streak 7 | 2 7 3 Penetration Max . | . . . Secondary Targets 3 | . 1 2 Max Gunslinging Chain 1 | . 1 1 Shots Hit Robots 131 | 14 94 23 Core Hits 51 | 6 32 13 Critical Kills . | . . . Critical Parts Destroyed 1 | 1 . . Critical Strikes 4 | 1 3 . Burn 3 | . 3 . Destroy 1 | 1 . . Melee Attacks . | . . . Impact . | . . . Slashing . | . . . Piercing . | . . . Sneak Attacks . | . . . Combat Hostiles . | . . . Follow-up Attacks . | . . . Damage Inflicted 1728 | 177 1201 350 Guns 1728 | 177 1201 350 Cannons . | . . . Explosions . | . . . Melee . | . . . Ramming . | . . . Kinetic 1182 | 177 655 350 Thermal 546 | . 546 . Explosive . | . . . Electromagnetic . | . . . Impact . | . . . Slashing . | . . . Piercing . | . . . Highest Corruption 10 | . 4 10 Average Corruption 3 | . 2 5 Corruption Purged . | . . . Corruption Blocked . | . . . Effects 22 | . 15 7 Message Errors 6 | . 4 2 Heat Flow Errors 2 | . 1 1 Energy Discharges 3 | . 2 1 Parts Rejected 1 | . . 1 Data Loss (minor) 7 | . 6 1 Data Loss (major) 3 | . 2 1 Overload Shots . | . . . Overflow Damage . | . . . Projectiles . | . . . Explosions . | . . . Melee . | . . . Knockbacks . | . . . Impact . | . . . Kinetic . | . . . Secondary . | . . . Self-Inflicted Damage . | . . . Shots . | . . . Rammed . | . . . Targets Rammed . | . . . Kicked . | . . . Crushed . | . . . Highest Temperature 416 | . 416 120 Average Temperature 120 | . 126 58 Received Heat Transfer 507 | . 387 120 Effects 3 | . 3 . Shutdowns 1 | . 1 . Short Circuit 1 | . 1 . Damage (major) 1 | . 1 . Siege Activations . | . . . Martial Activations . | . . . Shielding Activations . | . . . Robots Disrupted . | . . . Combat Hostiles . | . . . Robots Corrupted . | . . . Combat Hostiles . | . . . Parts Fried . | . . . Impact Corruptions . | . . . Robots Melted . | . . . Combat Hostiles . | . . . Parts Melted 2 | . 2 . Heat Transferred 1702 | . 1702 . Parts Sabotaged . | . . . Parts Stolen . | . . . Parts Stripped . | . . . Power Chain Reactions . | . . . Alert | -11 -10 -10 ------- Run | Yrd Mat Min Maximum Alert Level . | . . . Low Security (%) 100 | 100 100 100 Level 1 . | . . . Level 2 . | . . . Level 3 . | . . . Level 4 . | . . . Level 5 . | . . . High Security . | . . . Max Security . | . . . Peak Influence 90 | 10 90 . Initial 3 | . 3 . Average 10 | 1 12 . Influence Increases 334 | 25 309 . Destroy 0b10 Robot/C 200 | . 200 . Destroy 0b10 Robot/NC 50 | 25 25 . Destroy Leader 56 | . 56 . Successful Hack 13 | . 13 . Lose Combat Pursuer 15 | . 15 . Influence Decreases 334 | 20 314 . Entered New Map 2 | . 2 . Time Decay 308 | 20 288 . Lost Part 24 | . 24 . Squads Dispatched 1 | . 1 . Investigation . | . . . Extermination . | . . . Reinforcement 1 | . 1 . Assault . | . . . Garrison . | . . . Intercept . | . . . Searches Triggered . | . . . Construction Impeded . | . . . Haulers Reinforced . | . . . Active Scanning Responses . | . . . Cargo Convoy Interrupts . | . . . Stealth | -11 -10 -10 --------- Run | Yrd Mat Min Distress Signals 2 | . 1 1 Communications Jammed . | . . . Distress Signals . | . . . Times Spotted 31 | . 21 10 Peak Tracking Total 4 | . 3 4 Tactical Retreats 1 | . 1 . Traps | -11 -10 -10 ------- Run | Yrd Mat Min Traps Triggered 3 | . 3 . Indirectly . | . . . Trap Hack Attempts . | . . . Triggered . | . . . Disarmed . | . . . Reprogrammed . | . . . Reused . | . . . Traps Extracted . | . . . Installed . | . . . Triggered . | . . . Machines | -11 -10 -10 ---------- Run | Yrd Mat Min Machines Disabled . | . . . Max in Single Turn . | . . . Machines Repaired . | . . . Machines Dismantled . | . . . Machines Sabotaged . | . . . Overloaded Fab Kills . | . . . Hacking | -11 -10 -10 --------- Run | Yrd Mat Min Machines Accessed 5 | . 5 . Terminals 5 | . 5 . Fabricators . | . . . Repair Stations . | . . . Recycling Units . | . . . Scanalyzers . | . . . Garrison Access . | . . . Total Hacks 18 | . 18 . Successful 11 | . 11 . Failed 7 | . 7 . Catastrophic . | . . . Database Lockouts . | . . . Manual 14 | . 14 . Terminals 18 | . 18 . Fabricators . | . . . Repair Stations . | . . . Recycling Units . | . . . Scanalyzers . | . . . Garrison Access . | . . . Terminal Hacks 3 | . 3 . Robot Analysis 2 | . 2 . Prototype ID Bank 1 | . 1 . Fabricator Hacks . | . . . Repair Station Hacks . | . . . Recycling Unit Hacks . | . . . Scanalyzer . | . . . Garrison Access Hacks . | . . . Unauthorized Hacks 8 | . 8 . Terminals 8 | . 8 . Botnet 5 | . 5 . Skim 3 | . 3 . Fabricators . | . . . Repair Stations . | . . . Recycling Units . | . . . Scanalyzers . | . . . Garrison Access . | . . . Data Cores Recovered . | . . . Used . | . . . Hacking Detections 5 | . 5 . Full Trace Events . | . . . Feedback Events . | . . . Feedback Blocked . | . . . Robot Schematics Acquired . | . . . Robots Built . | . . . Authchips . | . . . Time . | . . . Total Robot Build Rating . | . . . Part Schematics Acquired . | . . . Parts Built . | . . . Authchips . | . . . Time . | . . . Total Part Build Rating . | . . . Part Studies Acquired . | . . . Parts Repaired . | . . . Time . | . . . Parts Recycled . | . . . Recycled Matter . | . . . Retrieved Matter . | . . . Retrieved Components . | . . . Parts Scanalyzed . | . . . Part Schematics Acquired . | . . . Parts Damaged . | . . . Bothacking | -11 -10 -10 ------------ Run | Yrd Mat Min Used RIF Installer . | . . . Robots Hacked . | . . . Non-combat . | . . . Combat . | . . . Robot Hacks Applied . | . . . Relay Couplers Released . | . . . Fabnet Peak Effective % . | . . . Robots Rewired . | . . . Allies Hacked . | . . . Hacks Repelled . | . . . Allies | -11 -10 -10 -------- Run | Yrd Mat Min Total Allies . | . . . Largest Group . | . . . Highest-Rated Group . | . . . Highest-Rated Ally . | . . . Total Orders . | . . . Ally Attacks . | . . . Total Damage . | . . . Kills . | . . . Allies Corrupted . | . . . Allies Melted . | . . . Intel | -11 -10 -10 ------- Run | Yrd Mat Min Active Infowar (turns) 1178 | 34 1144 . Seismic 1178 | 34 1144 . Robot Analysis Total 2 | . 2 . Derelict Logs Recovered . | . . . Drone Launches . | . . . Drone Recoveries . | . . . Exploration | -11 -10 -10 ------------- Run | Yrd Mat Min Turns Passed 2040 | 131 1676 233 Spaces Moved 857 | 50 698 109 Core 2 | 2 . . Treads 855 | 48 698 109 Legs . | . . . Wheels . | . . . Hover . | . . . Flight . | . . . Fastest Speed 50 | 50 160 160 Average Speed 175 | 155 178 160 Slowest Speed 240 | 160 240 160 Overloaded Moves . | . . . Propulsion Burnouts . | . . . Robots Hopped . | . . . Potential Cave-ins . | . . . Cave-ins Triggered . | . . . Exploration Rate (%) 41 | 4 94 25 Regions Visited 2 Branch Regions 1 Pre-discovered Areas . | . . . Known Exits Taken 1 | . 1 . Unknown Exits Taken 1 | 1 . . Scrap Searched . | . . . Spaces Dug . | . . . Terrain Destroyed . | . . . Melee . | . . . Projectile . | . . . AOE . | . . . Terrain Rammed . | . . . Walls Destroyed . | . . . Machines Disabled . | . . . Actions | -11 -10 -10 --------- Run | Yrd Mat Min Total 1176 | 75 965 136 Wait 168 | . 167 1 Move 855 | 49 697 109 Hop . | . . . Pick Up 13 | 4 8 1 Fast Attach 8 | 7 . 1 Attach 7 | . 4 3 Detach . | . . . Swap 9 | . 8 1 Drop 3 | 2 1 . Fire 113 | 13 80 20 Melee . | . . . Ram . | . . . Kick . | . . . Crush . | . . . Escape Stasis . | . . . Rewire . | . . . Trap . | . . . Miscellaneous . | . . . Route ------- -11/Scrapyard -10/Materials (discovered 5 exits: [*Mat x3] / *Min / [*Sub]) -10/Mines History --------- Turn | Location | Event 13 | -11/Scrapyard | Discovered new exit (range 14) 132 | -11/Scrapyard | Entered Materials 304 | -10/Materials | Build established: Mutant 330 | -10/Materials | Discovered new exit (range 14) 541 | -10/Materials | Discovered new exit (range 4) 840 | -10/Materials | Discovered new exit (range 12) 952 | -10/Materials | Discovered new exit (range 8) 1049 | -10/Materials | Discovered new exit (range 7) 1307 | -10/Materials | Lost 3 parts (1n1u1w) 1796 | -10/Materials | Identified exit to Mines 1808 | -10/Materials | Entered Mines 1888 | -10/Mines | A weapon hastily lodged in a ceiling crevice suddenly fell to the ground 1938 | -10/Mines | Assembled infested the area 1943 | -10/Mines | Assisted by a Guerilla fighting off Assembled 1997 | -10/Mines | Core integrity fell below 50% 2028 | -10/Mines | System corruption reached 10% 2032 | -10/Mines | Core integrity fell below 20% 2041 | -10/Mines | Destroyed by as-01513 with Assembled Rifle Last Messages --------------- 01982_ Switching to secondary target: as-07981. 01985_ as-07981 destroyed. 01989_ Acquired 15 matter. 01991_ Acquired 4 matter. 01992_ Acquired 19 matter. 01996_ Lgt. Ion Engine destroyed. 01996_ System corrupted by crushing effect (+5). 02001_ Lgt. Treads destroyed. 02004_ as-80168 destroyed. 02004_ Switching to secondary target: as-15495. 02008_ 0